bitfinex-derivatives/quotes_ETHF0:USTF0_20210405
["timestamp","ask_amount","ask_price","bid_price","bid_amount"]
[1617587884243,4.73345,2052.9,2052.6,5.12037468]
[1617587890951,4.73345,2052.9,2052.5,5.11774167]
[1617587892856,2.90695,2052.6,2052.5,5.11774167]
[1617587894858,2.90695,2052.6,2052.4,5.11801333]
[1617587895160,2.90695,2052.6,2052.5,5.11802197]
[1617587895561,2.90695,2052.6,2052.4,5.11579466]
[1617587896261,2.90695,2052.6,2052.3,5.11588563]
[1617587897665,2.90695,2052.6,2052.0,5.1167226]
[1617587897863,2.0,2052.5,2052.0,5.1167226]
[1617587898064,2.0,2052.5,2051.9,5.11712451]
[1617587898463,2.0,2052.5,2051.8,5.11727109]
[1617587898663,2.0,2052.5,2051.1,7.39161379]
[1617587898664,2.0,2052.5,2051.7,5.11735541]
[1617587898863,5.12095,2051.8,2051.7,5.11735541]
[1617587904570,5.12095,2051.8,2051.6,6.25588005]
[1617587906969,5.12095,2051.8,2051.7,5.11607971]
[1617587910481,5.12095,2051.8,2051.6,5.11626113]
[1617587911080,6.10745,2051.8,2051.6,6.08986113]
[1617587911281,5.12095,2051.8,2051.6,5.11626113]
[1617587913680,5.12095,2051.8,2051.7,5.11763329]
[1617587914080,5.12095,2051.8,2051.6,5.11776948]
[1617587917586,5.12095,2051.8,2051.7,5.11761135]
[1617587921385,2.90695,2051.8,2051.7,5.11761135]
[1617587922186,2.90695,2051.8,2051.6,6.25670432]
[1617587926092,2.90695,2051.8,2051.7,6.25796218]
[1617587927296,2.90695,2051.8,2051.7,2.90695]
[1617587928295,2.90695,2051.8,2051.5,7.39516567]
[1617587929198,2.90695,2051.8,2051.5,10.30211567]
[1617587929798,2.90695,2051.8,2051.5,7.39516567]
[1617587930402,2.90695,2051.8,2051.7,6.25792354]
[1617587931600,2.90695,2051.8,2051.6,6.25825121]
[1617587932601,2.90695,2051.8,2051.7,6.2580359]
[1617587933302,2.90695,2051.8,2051.4,7.39754704]
[1617587934408,2.90695,2051.8,2051.5,7.39749168]
[1617587935708,2.90695,2051.8,2051.4,7.39753614]
[1617587937310,2.90695,2051.5,2051.4,7.39753614]
[1617587937609,2.90695,2051.5,2051.4,7.60909983]
[1617587942916,2.90695,2051.5,2051.3,7.39481064]
[1617587943516,2.90695,2051.5,2051.1,2.90695]
[1617587943517,4.71975,2051.5,2051.2,7.39516169]
[1617587944618,4.71975,2051.5,2051.3,0.21171695]
[1617587944819,4.71975,2051.5,2051.3,7.60888899]
[1617587945317,4.71975,2051.5,2051.3,7.39717204]
[1617587945919,4.71975,2051.5,2051.2,7.39721744]
[1617587946219,4.71975,2051.5,2051.3,7.60892519]
[1617587946619,4.71975,2051.5,2051.3,0.21171881]
[1617587946819,4.71975,2051.5,2051.2,7.39733967]
[1617587947021,4.71975,2051.5,2051.1,7.3974493]
[1617587947419,2.90695,2051.2,2051.1,7.3974493]
[1617587947821,2.90695,2051.2,2051.1,0.21174712]
[1617587948119,2.90695,2051.2,2051.1,7.60932488]
[1617587948319,2.90695,2051.2,2051.1,7.39757776]
[1617587948519,2.90695,2051.2,2051.1,7.60932612]
[1617587948920,2.90695,2051.2,2051.1,0.21174836]
[1617587949320,2.90695,2051.2,2051.1,7.60651822]
[1617587961033,2.90695,2051.2,2051.1,0.21174836]
[1617587961634,2.90695,2051.2,2051.0,0.21258578]
[1617587962035,2.90695,2051.2,2051.1,0.21257968]
[1617587962234,2.90695,2051.2,2051.0,8.7599858]
[1617587962736,2.90695,2051.2,2051.1,0.21255853]
[1617587962941,58.6044,2052.5,2051.1,0.21255853]
[1617587963137,58.6044,2052.5,2051.1,1.97965853]
[1617587963338,58.6044,2052.5,2052.1,5.12809179]
[1617587963737,58.6044,2052.5,2052.2,5.12805086]
[1617587964138,56.6044,2052.5,2052.2,5.12805086]
[1617587964739,2.0,2053.5,2052.3,5.12784369]
[1617587965142,2.0,2053.5,2052.4,5.12774406]
[1617587965342,2.90695,2052.5,2052.4,5.12774406]
[1617587965547,2.90695,2052.5,2052.2,8.05614274]
[1617587965548,2.90695,2052.5,2052.2,1.7889]
[1617587967045,2.90695,2052.5,2052.3,7.40490125]
[1617587967244,2.90695,2052.5,2052.3,7.61723153]
[1617587967644,2.90695,2052.5,2052.3,7.40490125]
[1617587967845,2.90695,2052.5,2052.2,1.7889]
[1617587968644,2.90695,2052.5,2052.1,7.398333]
[1617587969445,2.90695,2052.2,2052.1,7.398333]
[1617587972650,2.90695,2052.2,2051.8,2.90695]
[1617587972952,2.90695,2052.2,2051.9,0.21140961]
[1617587978657,2.90695,2052.2,2052.1,7.39469731]
[1617587978856,2.90695,2052.2,2052.1,10.07449731]
[1617587980759,2.90695,2052.2,2052.1,2.6798]
[1617587984064,2.90695,2052.2,2051.8,11.44161453]
[1617587984463,2.90695,2052.2,2051.9,0.21107121]
[1617587986065,67.5531,2053.0,2051.9,0.21107121]
[1617587986366,67.5531,2053.0,2052.8,5.12064952]
[1617587986766,2.0,2053.7,2052.8,5.12064952]
[1617587987266,59.892,2053.4,2052.8,5.12064952]
[1617587987667,2.90695,2052.9,2052.8,5.12064952]
[1617587989371,2.90695,2052.9,2052.7,5.11840354]
[1617587990171,2.90695,2052.9,2052.7,6.2553825]
[1617587990572,2.90695,2052.9,2052.4,7.39102266]
[1617587990973,2.90695,2052.9,2052.5,7.39093119]
[1617587991172,2.90695,2052.9,2052.5,9.63673119]
[1617587991673,2.90695,2052.6,2052.5,9.63673119]
[1617587992473,2.90695,2052.6,2052.5,2.45651838]
[1617587995674,2.90695,2052.6,2052.5,5.36346838]
[1617587995874,2.90695,2052.6,2052.5,7.36346838]
[1617587996675,2.90695,2052.6,2052.5,15.88985952]
[1617587997375,2.90695,2052.6,2052.5,7.36346838]
[1617587997776,2.90695,2052.6,2052.5,15.88986031]
[1617587999977,62.3792,2054.6,2052.5,15.88986031]
[1617588000378,62.3792,2054.6,2053.6,5.11570222]
[1617588000781,62.3792,2054.6,2053.3,2.1297]
[1617588001581,65.0215,2054.6,2053.3,2.1297]
[1617588001781,2.90695,2053.4,2053.1,8.01053731]
[1617588001982,2.90695,2053.4,2053.1,2.90695]
[1617588002682,2.90695,2053.4,2053.1,8.00997377]
[1617588003082,4.60615,2053.4,2053.1,8.00997377]
[1617588003881,4.60615,2053.4,2053.1,2.90695]
[1617588004081,4.60615,2053.4,2053.0,5.10305597]
[1617588005083,4.60615,2053.4,2052.7,5.09955417]
[1617588005484,63.0885,2053.2,2052.4,5.10002609]
[1617588005683,2.90695,2052.5,2052.4,5.10002609]
[1617588006084,5.46495,2052.5,2052.4,5.10002609]
[1617588006785,5.46495,2052.5,2052.3,6.23320927]
[1617588007085,5.46495,2052.5,2052.4,5.10001053]
[1617588008385,5.46495,2052.5,2052.3,5.10018706]
[1617588008985,5.46495,2052.5,2052.1,6.23356197]
[1617588008986,5.46495,2052.5,2052.4,5.10024577]
[1617588009385,5.46495,2052.5,2052.3,5.10034928]
[1617588009787,5.46495,2052.5,2052.1,5.10088443]
[1617588010385,5.46495,2052.5,2052.0,5.10131109]
[1617588010786,5.46495,2052.5,2051.8,5.10168803]
[1617588011785,2.90695,2051.9,2051.7,5.10184099]
[1617588011987,4.88215,2051.9,2051.7,5.10184099]
[1617588012387,4.88215,2051.9,2051.6,5.10170429]
[1617588015786,4.88215,2051.9,2051.5,5.10222379]
[1617588015986,5.86895,2051.9,2051.5,5.10222379]
[1617588016186,4.88215,2051.9,2051.6,5.10466457]
[1617588016787,4.88215,2051.9,2051.5,5.10476908]
[1617588017187,4.88215,2051.9,2051.6,5.10474559]
[1617588018486,4.88215,2051.9,2051.7,5.1046168]
[1617588018887,4.88215,2051.9,2051.6,5.10478544]
[1617588019487,4.88215,2051.9,2051.4,6.2391822]
[1617588019488,4.88215,2051.9,2051.4,5.10519326]
[1617588019887,2.90695,2051.5,2051.3,5.10534288]
[1617588020089,2.90695,2051.5,2051.2,5.10546234]
[1617588022091,2.90695,2051.5,2051.1,5.10555717]
[1617588022691,70.5421,2051.3,2051.1,5.10555717]
[1617588022891,72.8805,2051.3,2051.1,5.10555717]
[1617588023792,2.90695,2051.2,2051.1,5.10555717]
[1617588023992,2.90695,2051.2,2051.0,5.10627673]
[1617588024392,2.90695,2051.2,2050.9,5.10641632]
[1617588025195,2.90695,2051.2,2050.8,5.10640572]
[1617588025596,2.90695,2051.2,2051.0,5.10640577]
[1617588027395,2.90695,2051.2,2050.6,5.10221805]
[1617588027900,2.90695,2050.7,2050.6,5.10221805]
[1617588028099,4.82685,2050.7,2050.6,5.10221805]
[1617588028901,4.82685,2050.7,2050.5,5.10228359]
[1617588030700,4.82685,2050.7,2050.4,5.10255164]
[1617588030901,70.15095,2050.7,2050.4,5.10255164]
[1617588031903,70.15095,2050.7,2050.3,5.10265566]
[1617588032202,70.15095,2050.7,2050.4,5.10253328]
[1617588034704,70.15095,2050.7,2050.3,5.10190463]
[1617588035905,2.90695,2050.4,2050.3,5.10190463]
[1617588037305,2.90695,2050.4,2050.1,6.23566121]
[1617588038106,2.90695,2050.4,2050.2,6.23575842]
[1617588038708,2.90695,2050.4,2050.0,5.09753229]
[1617588039907,2.90695,2050.1,2050.0,5.09753229]
[1617588041413,2.90695,2050.1,2049.9,5.09777786]
[1617588042712,2.90695,2050.1,2049.8,5.09822068]
[1617588046114,2.90695,2050.1,2049.7,5.09839838]
[1617588048115,5.14975,2049.8,2049.7,5.09839838]
[1617588049121,5.14975,2049.8,2049.6,5.09874277]
[1617588049521,5.14975,2049.8,2048.5,5.09160736]
[1617588049720,5.14975,2049.8,2048.3,5.09183633]
[1617588049920,2.0,2049.7,2048.3,5.09183633]
[1617588050120,2.90695,2048.4,2048.3,5.09183633]
[1617588050321,5.38045,2048.4,2048.2,7.99899543]
[1617588050720,5.38045,2048.4,2048.2,2.90695]
[1617588052422,6.35055,2048.4,2048.2,2.90695]
[1617588053622,6.35055,2048.4,2047.9,7.66371142]
[1617588053924,6.35055,2048.4,2047.9,2.571]
[1617588054124,2.90695,2048.0,2047.9,2.571]
[1617588054525,2.90695,2048.0,2047.8,2.90695]
[1617588057028,2.90695,2048.0,2047.6,5.09344579]
[1617588057631,2.90695,2048.0,2047.6,0.9851]
[1617588058031,2.90695,2047.7,2047.6,0.9851]
[1617588058231,5.40485,2047.7,2047.6,0.9851]
[1617588058430,5.40485,2047.7,2047.4,5.08978581]
[1617588059433,5.40485,2047.7,2047.4,6.06308581]
[1617588059631,5.40485,2047.7,2047.4,5.08978581]
[1617588060031,5.40485,2047.7,2047.6,2.90695]
[1617588060832,77.8918,2048.4,2047.6,2.90695]
[1617588062036,77.8918,2048.4,2048.2,2.90695]
[1617588063634,77.8918,2048.4,2047.3,0.981]
[1617588063834,77.8918,2048.4,2047.2,2.0]
[1617588064134,77.8918,2048.4,2047.9,2.90695]
[1617588064334,77.8918,2048.4,2047.2,2.0]
[1617588064538,77.8918,2048.4,2046.9,2.9818]
[1617588065135,77.8918,2048.4,2047.0,5.06743911]
[1617588065335,77.8918,2048.4,2047.0,7.06743911]
[1617588065534,77.8918,2048.4,2047.0,9.46123911]
[1617588065935,77.8918,2048.4,2047.1,5.06758732]
[1617588066134,77.8918,2048.4,2047.8,2.90695]
[1617588066834,2.0,2049.3,2047.1,5.06758732]
[1617588067035,79.1907,2047.6,2047.1,5.06758732]
[1617588067236,79.1907,2047.6,2047.0,2.0]
[1617588068236,79.1907,2047.6,2047.5,2.90695]
[1617588070239,82.09765,2047.6,2047.5,2.90695]
[1617588073641,2.90695,2047.6,2047.5,2.90695]
[1617588073841,61.2619,2047.5,2046.7,5.0637518]
[1617588074042,61.2619,2047.5,2046.6,2.9692]
[1617588074244,61.2619,2047.5,2047.1,2.90695]
[1617588076245,2.90695,2047.2,2047.1,2.90695]
[1617588081750,2.90695,2047.2,2046.1,0.9648]
[1617588082249,0.9821,2047.2,2046.8,2.90695]
[1617588082949,61.2619,2047.5,2046.8,2.90695]
[1617588084250,2.90695,2046.9,2046.8,2.90695]
[1617588084451,4.64185,2046.9,2046.0,1.9595]
[1617588084651,4.64185,2046.9,2046.0,0.9773]
[1617588085251,78.31,2046.4,2046.0,0.9773]
[1617588085458,80.1024,2046.4,2046.0,0.9773]
[1617588085651,80.1024,2046.4,2046.0,1.9557]
[1617588086455,80.1024,2046.4,2046.3,2.90695]
[1617588088361,83.00935,2046.4,2046.3,2.90695]
[1617588093770,82.27485,2046.4,2046.3,2.90695]
[1617588096676,4.69935,2046.4,2045.4,3.0715]
[1617588096878,80.0052,2046.3,2045.4,1.0715]
[1617588097277,80.0052,2046.3,2045.4,0.1]
[1617588098278,30.0,2046.2,2045.4,0.1]
[1617588098477,2.90695,2045.5,2045.4,0.1]
[1617588098678,7.03815,2045.5,2045.4,0.1]
[1617588098877,7.03815,2045.5,2044.0,5.0636464]
[1617588099079,7.03815,2045.5,2043.3,5.06527181]
[1617588099477,7.03815,2045.5,2042.7,20.31030373]
[1617588099478,7.03815,2045.5,2042.8,5.06610086]
[1617588100077,71.5775,2043.7,2042.8,5.06610086]
[1617588100278,71.5775,2043.7,2042.7,5.06720709]
[1617588100480,2.90695,2043.5,2043.3,2.90695]
[1617588104382,2.90695,2043.5,2043.3,3.89245]
[1617588104582,2.90695,2043.5,2043.3,2.90695]
[1617588107785,62.9913,2045.0,2043.3,2.90695]
[1617588107985,63.9728,2045.0,2043.3,4.77235]
[1617588108287,62.9913,2045.0,2043.3,4.77235]
[1617588108485,62.9913,2045.0,2044.2,2.90695]
[1617588110589,2.90695,2044.3,2044.2,2.90695]
[1617588110790,2.0,2046.0,2044.2,2.90695]
[1617588111793,1.9395,2046.8,2044.2,2.90695]
[1617588111994,3.9395,2046.8,2044.2,2.90695]
[1617588112294,14.1681,2046.2,2044.2,3.89605]
[1617588112494,13.1981,2046.2,2044.8,2.90695]
[1617588112893,3.9395,2046.8,2044.8,2.90695]
[1617588113093,2.0,2046.8,2044.8,2.90695]
[1617588113493,2.0,2046.7,2044.8,2.90695]
[1617588113700,2.0,2046.7,2043.3,1.8654]
[1617588113895,3.8952,2046.7,2043.0,0.9777]
[1617588114495,3.8952,2046.7,2044.2,2.90695]
[1617588114912,3.8952,2046.7,2044.2,5.04235]
[1617588115100,2.0,2046.7,2044.2,5.04235]
[1617588116297,2.0,2046.7,2044.2,2.90695]
[1617588116497,2.0,2046.7,2044.5,2.90695]
[1617588118603,2.90695,2044.6,2044.5,2.90695]
[1617588119003,2.90695,2044.6,2043.0,0.9777]
[1617588120404,2.90695,2044.6,2042.9,2.0]
[1617588120604,2.2576,2044.7,2043.7,2.90695]
[1617588122004,2.2576,2044.7,2042.5,0.1]
[1617588122606,2.2576,2044.7,2043.2,2.90695]
[1617588122806,2.0,2044.6,2043.2,2.90695]
[1617588124414,2.0,2044.6,2042.5,0.1]
[1617588124608,2.0,2044.6,2042.9,2.90695]
[1617588125419,2.0,2044.6,2042.5,0.1]
[1617588126609,2.0,2044.6,2042.6,2.90695]
[1617588127410,32.0,2044.6,2040.2,2.0]
[1617588127609,66.4496,2043.6,2040.2,2.0]
[1617588127810,33.6914,2043.5,2039.8,2.571]
[1617588128211,33.6914,2043.5,2040.0,0.01565657]
[1617588128613,2.90695,2040.1,2040.0,0.01565657]
[1617588128812,5.01175,2040.1,2040.0,0.01565657]
[1617588129212,5.01175,2040.1,2037.7,5.0365017]
[1617588129413,5.01175,2040.1,2037.0,6.02972167]
[1617588129612,5.01175,2040.1,2037.0,0.9916]
[1617588130612,2.1048,2040.1,2039.7,2.90695]
[1617588130813,74.6431,2039.8,2037.0,0.9916]
[1617588131615,74.6431,2039.8,2037.2,0.02]
[1617588132617,74.6431,2039.8,2039.0,2.90695]
[1617588134520,74.6231,2039.8,2037.2,0.02]
[1617588134724,74.6231,2039.8,2037.1,2.0]
[1617588135121,74.6231,2039.8,2036.1,13.1404]
[1617588135324,74.6231,2039.8,2036.7,0.1]
[1617588135522,2.0,2039.7,2036.7,0.1]
[1617588135721,30.0,2039.6,2036.7,0.1]
[1617588135920,30.0,2039.4,2036.7,0.1]
[1617588136127,2.3463,2039.6,2036.7,0.1]
[1617588136128,30.0,2039.2,2036.7,0.1]
[1617588136323,30.0,2039.2,2033.9,13.054]
[1617588136324,30.0,2039.0,2032.6,7.54155837]
[1617588136520,2.0,2039.1,2032.6,7.54155837]
[1617588136521,30.0,2038.8,2033.4,13.4342]
[1617588136721,30.0,2038.8,2035.2,2.90695]
[1617588136722,2.0,2038.7,2035.2,2.90695]
[1617588136926,2.0,2038.7,2033.4,13.4342]
[1617588136927,30.0,2038.6,2033.4,13.4342]
[1617588137122,2.0,2038.5,2033.4,13.4342]
[1617588137522,81.1172,2036.8,2033.4,13.4342]
[1617588137723,81.1172,2036.8,2034.4,0.02]
[1617588137922,81.1172,2036.8,2033.5,2.0]
[1617588138122,81.1172,2036.8,2033.7,0.02]
[1617588138522,78.4312,2036.8,2033.7,0.02]
[1617588138723,78.4312,2036.8,2036.7,2.90695]
[1617588139523,78.4312,2036.8,2034.4,0.982]
[1617588139724,78.4312,2036.8,2034.7,2.3342]
[1617588139924,78.4312,2036.8,2032.7,18.1887]
[1617588140125,78.4312,2036.8,2033.5,2.0]
[1617588140726,78.4312,2036.8,2035.7,2.90695]
[1617588141128,2.257,2036.9,2035.7,2.90695]
[1617588141326,80.4765,2037.5,2035.7,2.90695]
[1617588142728,80.4765,2037.5,2037.4,2.90695]
[1617588142930,80.4765,2037.5,2037.4,4.91285]
[1617588144332,13.0716,2041.3,2037.4,4.91285]
[1617588144534,2.0,2041.2,2037.4,4.91285]
[1617588144734,2.0,2041.2,2039.1,2.90695]
[1617588144931,2.0,2041.2,2039.1,5.15755]
[1617588145533,78.8596,2041.9,2039.1,5.15755]
[1617588145736,80.8596,2041.9,2039.1,5.15755]
[1617588146336,80.8596,2041.9,2037.5,9.92665]
[1617588146533,80.8596,2041.9,2037.6,2.0]
[1617588146735,80.8596,2041.9,2039.3,4.71595]
[1617588147735,80.8596,2041.9,2038.7,2.3146]
[1617588148739,80.8596,2041.9,2039.3,2.90695]
[1617588148938,83.5905,2041.9,2038.0,2.3115]
[1617588149138,113.5905,2041.9,2038.0,2.3115]
[1617588149938,113.5905,2041.9,2035.5,2.0]
[1617588150140,30.0,2041.7,2035.5,2.0]
[1617588150341,30.0,2041.5,2035.5,2.0]
[1617588150540,4.2035,2041.4,2035.5,2.0]
[1617588150941,34.2035,2041.4,2035.5,2.0]
[1617588151941,4.2035,2041.4,2035.5,2.0]
[1617588152341,26.3967,2041.8,2035.5,4.2408]
[1617588152540,2.0,2041.7,2035.5,4.2408]
[1617588152740,2.90695,2040.0,2039.7,2.90695]
[1617588152941,2.90695,2040.0,2035.5,4.2408]
[1617588153844,2.0,2041.7,2035.5,4.2408]
[1617588154743,2.0,2041.7,2039.7,2.90695]
[1617588155144,2.0,2041.7,2038.6,2.3276]
[1617588155645,78.8596,2041.9,2038.6,2.3276]
[1617588156744,78.8596,2041.9,2040.7,2.90695]
[1617588156944,78.8596,2041.9,2040.7,4.87605]
[1617588157144,78.8596,2041.9,2040.7,1.9691]
[1617588158144,78.8596,2041.9,2039.3,2.359]
[1617588158345,78.8596,2041.9,2040.5,2.7307]
[1617588158545,78.8596,2041.9,2040.0,2.5627]
[1617588158746,2.90695,2040.6,2040.2,2.90695]
[1617588160847,2.90695,2040.6,2040.5,5.01545]
[1617588161246,2.0,2043.0,2040.5,5.01545]
[1617588161448,60.5751,2043.3,2040.5,5.01545]
[1617588162651,60.5751,2043.3,2040.5,2.90695]
[1617588162851,2.90695,2040.9,2040.5,2.90695]
[1617588163050,2.0667,2041.7,2040.5,2.90695]
[1617588163652,45.37967179,2043.3,2040.5,2.90695]
[1617588164052,45.37967179,2043.3,2037.2,2.4117]
[1617588164053,47.44527179,2043.3,2037.4,2.0]
[1617588164251,47.44527179,2043.3,2037.5,12.8859]
[1617588164452,77.44527179,2043.3,2037.5,12.8859]
[1617588165453,77.44527179,2043.3,2037.6,13.8942]
[1617588166055,77.44527179,2043.3,2037.6,15.6237]
[1617588166654,47.44527179,2043.3,2037.6,15.6237]
[1617588166855,47.44527179,2043.3,2039.7,2.90695]
[1617588167256,47.44527179,2043.3,2039.3,1.8902]
[1617588167257,30.0,2043.2,2039.3,1.8902]
[1617588167456,30.0,2043.0,2039.3,1.8902]
[1617588167655,30.0,2042.8,2039.3,1.8902]
[1617588167859,30.0,2042.6,2039.3,1.8902]
[1617588168056,30.0,2042.4,2039.3,1.8902]
[1617588168257,30.0,2042.2,2037.6,13.8942]
[1617588168456,30.0,2042.0,2037.6,13.8942]
[1617588168657,30.0,2041.8,2037.6,13.8942]
[1617588168857,2.0,2041.7,2038.5,2.90695]
[1617588169056,32.7407,2041.6,2038.5,2.90695]
[1617588169256,2.0,2041.5,2038.5,2.90695]
[1617588169858,13.4739,2042.0,2038.5,5.56425]
[1617588170958,13.4739,2042.0,2040.2,2.90695]
[1617588171160,32.0,2042.9,2040.2,4.89565]
[1617588171759,32.0,2042.9,2040.2,1.9887]
[1617588172461,2.0,2042.9,2040.2,1.9887]
[1617588172661,2.0,2043.2,2040.2,1.9887]
[1617588172863,2.0,2043.2,2040.5,2.90695]
[1617588173361,43.37967179,2043.3,2040.5,2.90695]
[1617588173561,45.37967179,2043.3,2040.5,2.90695]
[1617588173761,45.37967179,2043.3,2040.2,1.9887]
[1617588173964,47.70447179,2043.3,2040.2,1.9887]
[1617588174962,2.90695,2040.3,2040.2,4.89565]
[1617588175365,47.70447179,2043.3,2040.2,4.89565]
[1617588175564,45.37967179,2043.3,2040.2,4.89565]
[1617588175765,43.37967179,2043.3,2040.2,4.89565]
[1617588176865,43.37967179,2043.3,2041.2,2.90695]
[1617588177067,45.37967179,2043.3,2041.2,2.90695]
[1617588177265,45.37967179,2043.3,2039.6,13.5088]
[1617588177466,47.59337179,2043.3,2039.6,13.5088]
[1617588178466,45.59337179,2043.3,2039.7,0.23187775]
[1617588178667,45.59337179,2043.3,2039.7,2.23147775]
[1617588178868,45.59337179,2043.3,2041.2,2.90695]
[1617588179766,47.59337179,2043.3,2041.2,2.90695]
[1617588180867,2.90695,2041.3,2041.2,2.90695]
[1617588182271,2.90695,2041.3,2040.8,1.7178]
[1617588182472,2.90695,2041.3,2040.2,2.0061]
[1617588182872,1.9789,2041.7,2039.7,1.9996]
[1617588183072,1.9789,2041.7,2039.6,13.5088]
[1617588183272,1.9789,2041.7,2036.4,15.287]
[1617588183472,1.9789,2041.7,2036.5,14.8576]
[1617588183771,1.9789,2041.7,2036.6,0.23121561]
[1617588184171,1.9789,2041.7,2036.6,0.25121561]
[1617588184371,3.9789,2041.7,2036.6,0.25121561]
[1617588184572,3.9789,2041.7,2036.6,0.23121561]
[1617588184772,1.9789,2041.7,2036.6,0.23121561]
[1617588184972,1.9789,2041.7,2039.5,2.90695]
[1617588185973,60.8609,2041.8,2039.5,2.90695]
[1617588186875,60.8609,2041.8,2040.6,2.90695]
[1617588187077,60.8609,2041.8,2040.6,4.85115]
[1617588187476,13.0184,2042.7,2040.6,4.85115]
[1617588187677,2.0,2043.8,2040.6,4.85115]
[1617588188078,62.1419,2043.8,2040.6,4.85115]
[1617588188876,62.1419,2043.8,2040.9,2.90695]
[1617588189077,92.1419,2043.8,2039.3,1.7805]
[1617588189277,94.4693,2043.8,2039.0,13.8595]
[1617588189678,94.4693,2043.8,2038.9,12.8371]
[1617588189879,30.0,2043.6,2038.9,12.8371]
[1617588190082,30.0,2043.4,2038.9,12.8371]
[1617588190279,2.0,2043.3,2038.9,12.8371]
[1617588190480,30.0,2043.2,2038.9,12.8371]
[1617588190681,32.0,2043.1,2038.9,12.8371]
[1617588190884,32.0,2043.1,2040.4,2.90695]
[1617588191084,32.0,2043.1,2038.9,12.8371]
[1617588191583,63.7672,2043.0,2038.9,12.8371]
[1617588191784,2.0,2042.9,2038.9,12.8371]
[1617588192283,2.0,2042.9,2039.0,0.2435062]
[1617588192483,2.0,2042.9,2039.0,1.9801062]
[1617588192883,2.90695,2040.8,2040.4,2.90695]
[1617588193083,2.0,2042.9,2040.4,5.03775]
[1617588193285,63.7672,2043.0,2040.4,5.03775]
[1617588193483,2.0,2042.9,2040.4,5.03775]
[1617588194884,4.745,2042.9,2041.0,2.90695]
[1617588195987,4.745,2042.9,2039.5,1.8231]
[1617588196887,4.745,2042.9,2040.0,2.90695]
[1617588197288,34.745,2042.9,2040.0,2.90695]
[1617588198987,34.745,2042.9,2040.4,2.90695]
[1617588199587,34.745,2042.9,2038.9,14.635]
[1617588199588,34.745,2042.9,2038.9,12.8371]
[1617588200992,2.90695,2040.2,2039.6,2.90695]
[1617588201993,5.48845,2040.2,2039.6,2.90695]
[1617588202989,2.90695,2040.5,2040.1,2.90695]
[1617588203594,48.0304,2042.9,2040.1,2.90695]
[1617588203891,34.745,2042.9,2040.1,2.90695]
[1617588204991,2.90695,2040.2,2040.1,2.90695]
[1617588205292,2.90695,2040.2,2038.9,14.8371]
[1617588205897,2.90695,2040.2,2039.0,0.24500935]
[1617588206898,2.90695,2040.2,2038.4,0.24511211]
[1617588207100,74.8865,2039.9,2038.6,2.90695]
[1617588207298,79.5108,2039.9,2038.6,2.90695]
[1617588207500,79.5108,2039.9,2038.7,0.24520165]
[1617588207700,77.5108,2039.9,2038.7,0.24520165]
[1617588208300,77.5108,2039.9,2039.6,5.12335071]
[1617588208500,74.8865,2039.9,2039.6,5.12335071]
[1617588208702,74.8865,2039.9,2039.7,5.12326045]
[1617588209101,74.8865,2039.9,2039.8,5.12302169]
[1617588209702,74.8865,2039.9,2039.2,10.30697443]
[1617588209703,74.8865,2039.9,2039.7,5.12318277]
[1617588209901,76.6542,2039.9,2039.7,5.12318277]
[1617588210602,76.6542,2039.9,2039.3,6.26217248]
[1617588210603,2.0,2039.8,2039.5,5.12359567]
[1617588210802,2.0,2039.8,2039.4,5.12356264]
[1617588211002,2.90695,2039.5,2039.4,5.12356264]
[1617588211401,2.90695,2039.5,2039.4,1.48496264]
[1617588211804,2.90695,2039.5,2038.9,6.26286276]
[1617588212504,2.90695,2039.5,2039.2,8.57502316]
[1617588212906,2.90695,2039.5,2039.3,6.26228147]
[1617588213105,74.8865,2039.9,2039.3,6.26228147]
[1617588213306,74.8865,2039.9,2039.2,5.21955]
[1617588213707,74.8865,2039.9,2039.5,6.26187426]
[1617588214106,74.8865,2039.9,2039.4,8.19471262]
[1617588214306,2.0,2040.8,2039.4,8.19471262]
[1617588214506,2.0,2040.8,2039.5,6.26168706]
[1617588214905,30.0,2042.1,2039.6,6.26149798]
[1617588215107,2.90695,2039.7,2039.6,6.26149798]
[1617588215306,2.0,2041.2,2039.4,4.83985]
[1617588215508,2.0,2041.2,2039.5,7.39927972]
[1617588215707,2.0,2041.2,2039.5,7.64423839]
[1617588215907,2.0,2041.2,2040.0,6.26068236]
[1617588216107,2.0,2041.2,2040.0,8.62798236]
[1617588216309,58.3074,2041.9,2040.0,8.62798236]
[1617588217008,58.3074,2041.9,2041.2,2.90695]
[1617588217209,60.3074,2041.9,2041.2,2.7438]
[1617588218010,2.0,2041.9,2041.2,2.7438]
[1617588218210,2.0,2041.9,2040.6,2.5282]
[1617588219111,2.0,2041.9,2040.7,2.90695]
[1617588219615,2.0,2041.9,2040.2,6.25935756]
[1617588220011,1.9364,2042.6,2040.2,6.25935756]
[1617588220213,2.0,2042.6,2040.4,6.26111236]
[1617588221013,2.0,2042.6,2040.6,6.26066183]
[1617588221213,2.0,2042.6,2041.2,1.6805]
[1617588224017,80.5338,2042.7,2041.2,1.6805]
[1617588224416,2.0,2042.6,2041.2,1.6805]
[1617588225216,80.5338,2042.7,2041.3,2.90695]
[1617588226219,80.5338,2042.7,2041.5,5.11788176]
[1617588226521,80.5338,2042.7,2041.4,5.11783115]
[1617588227120,80.5338,2042.7,2042.4,2.90695]
[1617588227320,80.5338,2042.7,2042.4,5.15315]
[1617588228320,80.5338,2042.7,2042.4,2.2462]
[1617588229123,2.90695,2042.5,2042.4,2.2462]
[1617588229923,2.90695,2042.5,2041.7,5.11726971]